fUST/lending_fUST_20250408
["ID","MTS","AMOUNT","RATE_DAILY","PERIOD"]
[357467665,1744077053572,-853.03,0.00023287,2]
[357467666,1744077053582,-500.0,0.00023287,2]
[357467667,1744077053592,-500.0,0.00023287,2]
[357467668,1744077053602,-1136.31,0.00023287,2]
[357467669,1744077053613,-500.0,0.00023287,2]
[357467670,1744077053623,-2088.72,0.00023287,2]
[357467671,1744077053632,-1347.03,0.00023287,2]
[357467672,1744077053642,-200.0,0.0002356,2]
[357467673,1744077053652,-500.0,0.00023561,2]
[357467674,1744077053662,-500.0,0.00023561,2]
[357467675,1744077053671,-505.48,0.00023561,2]
[357467676,1744077053681,-549.37,0.00023561,2]
[357467677,1744077053691,-989.79,0.00023561,2]
[357467678,1744077053701,-500.0,0.00023561,2]
[357467679,1744077053710,-500.0,0.00023561,2]
[357467680,1744077053720,-500.0,0.00023561,2]
[357467681,1744077053730,-571.51,0.00023561,2]
[357467682,1744077053740,-500.0,0.00023561,2]
[357467683,1744077053750,-500.0,0.00023561,2]
[357467684,1744077053760,-500.0,0.00023561,2]
[357467685,1744077053770,-500.0,0.00023561,2]
[357467686,1744077053780,-223.6834008,0.00023561,2]
[357467687,1744077053790,-500.0,0.00023561,2]
[357467688,1744077053800,-500.0,0.00023561,2]
[357467689,1744077053810,-500.0,0.00023561,2]
[357467690,1744077053819,-500.0,0.00023561,2]
[357467691,1744077053829,-500.0,0.00023561,2]
[357467692,1744077053840,-500.0,0.00023561,2]
[357467693,1744077053850,-500.0,0.00023561,2]
[357467694,1744077053860,-292.88364408,0.00023561,2]
[357467695,1744077053870,-520.89,0.00023561,2]
[357467696,1744077053880,-500.0,0.00023561,2]
[357467697,1744077053890,-500.0,0.00023561,2]
[357467698,1744077053900,-500.0,0.00023561,2]
[357467699,1744077053910,-500.0,0.00023561,2]
[357467700,1744077053925,-1231.93,0.00023561,2]
[357467701,1744077053935,-500.0,0.00023561,2]
[357467702,1744077053945,-612.52,0.00023561,2]
[357467703,1744077053955,-591.40586613,0.00023561,2]
[357467704,1744077053966,-954.53,0.00023561,2]
[357467705,1744077053976,-500.0,0.00023561,2]
[357467706,1744077053986,-501.24,0.00023561,2]
[357467707,1744077053996,-943.13,0.00023561,2]
[357467708,1744077054005,-500.0,0.00023561,2]
[357467709,1744077054015,-643.13,0.00023561,2]
[357467710,1744077054025,-500.0,0.00023561,2]
[357467711,1744077054035,-500.0,0.00023561,2]
[357467712,1744077054045,-500.0,0.00023561,2]
[357467713,1744077054055,-500.0,0.00023561,2]
[357467714,1744077054065,-500.0,0.00023561,2]
[357467715,1744077054074,-1197.82,0.00023561,2]
[357467716,1744077054084,-711.83,0.00023561,2]
[357467717,1744077054094,-500.0,0.00023561,2]
[357467718,1744077054104,-1237.52,0.00023561,2]
[357467719,1744077054113,-500.0,0.00023561,2]
[357467720,1744077054123,-322.23845734,0.00023561,2]
[357467721,1744077054132,-500.0,0.00023561,2]
[357467722,1744077054142,-816.65,0.00023561,2]
[357467723,1744077054151,-500.0,0.00023561,2]
[357467724,1744077054161,-500.0,0.00023561,2]
[357467725,1744077054171,-500.0,0.00023561,2]
[357467726,1744077054180,-500.0,0.00023561,2]
[357467727,1744077054190,-500.0,0.00023561,2]
[357467728,1744077054199,-500.0,0.00023561,2]
[357467729,1744077054209,-500.0,0.00023561,2]
[357467730,1744077054219,-500.0,0.00023561,2]
[357467731,1744077054228,-500.0,0.00023561,2]
[357467732,1744077054238,-500.0,0.00023561,2]
[357467733,1744077054247,-500.0,0.00023561,2]
[357467734,1744077054257,-521.4,0.00023561,2]
[357467735,1744077054267,-214.21348365,0.00023561,2]
[357467736,1744077054276,-677.48,0.00023561,2]
[357467737,1744077054285,-500.0,0.00023561,2]
[357467738,1744077054299,-500.0,0.00023561,2]
[357467739,1744077054309,-500.0,0.00023561,2]
[357467740,1744077054319,-1015.63,0.00023561,2]
[357467741,1744077054329,-965.83,0.00023561,2]
[357467742,1744077054339,-500.0,0.00023561,2]
[357467743,1744077054348,-883.8,0.00023561,2]
[357467744,1744077054358,-955.46,0.00023561,2]
[357467745,1744077054368,-500.0,0.00023561,2]
[357467746,1744077054377,-500.0,0.00023561,2]
[357467747,1744077054387,-2195.18,0.00023561,2]
[357467748,1744077054396,-500.0,0.00023561,2]
[357467749,1744077054405,-500.0,0.00023561,2]
[357467750,1744077054415,-500.0,0.00023561,2]
[357467751,1744077054424,-500.0,0.00023561,2]
[357467752,1744077054436,-296.45367776,0.00023561,2]
[357467753,1744077054446,-500.0,0.00023561,2]
[357467754,1744077054455,-1724.47,0.00023561,2]
[357467755,1744077054465,-500.0,0.00023561,2]
[357467756,1744077054475,-500.0,0.00023561,2]
[357467757,1744077054484,-500.0,0.00023561,2]
[357467758,1744077054494,-1673.88,0.00023561,2]
[357467759,1744077054503,-500.0,0.00023561,2]
[357467760,1744077054513,-534.14,0.00023561,2]
[357467761,1744077054522,-500.0,0.00023561,2]
[357467762,1744077054532,-500.0,0.00023561,2]
[357467763,1744077054541,-500.0,0.00023561,2]
[357467764,1744077054551,-1340.54,0.00023561,2]
[357467765,1744077054561,-542.01,0.00023561,2]
[357467766,1744077054570,-524.96,0.00023561,2]
[357467767,1744077054579,-500.0,0.00023561,2]
[357467768,1744077054589,-500.0,0.00023561,2]
[357467769,1744077054598,-730.76,0.00023561,2]
[357467770,1744077054608,-1513.16,0.00023561,2]
[357467771,1744077054618,-2076.71,0.00023561,2]
[357467772,1744077054627,-2241.86,0.00023561,2]
[357467773,1744077054636,-1276.21,0.00023561,2]
[357467774,1744077054646,-720.44,0.00023561,2]
[357467775,1744077054655,-2755.26,0.00023561,2]
[357467776,1744077054664,-500.0,0.00023561,2]
[357467777,1744077054673,-500.0,0.00023561,2]
[357467778,1744077054683,-511.82705808,0.00023561,2]
[357467779,1744077054692,-500.0,0.00023561,2]
[357467780,1744077054702,-500.0,0.00023561,2]
[357467781,1744077054711,-500.0,0.00023561,2]
[357467782,1744077054721,-500.0,0.00023561,2]
[357467783,1744077054730,-500.0,0.00023561,2]
[357467784,1744077054740,-500.0,0.00023561,2]
[357467785,1744077054749,-500.0,0.00023561,2]
[357467786,1744077054760,-795.94,0.00023561,2]
[357467787,1744077054769,-500.0,0.00023561,2]
[357467788,1744077054778,-5255.83,0.00023561,2]
[357467789,1744077054788,-1073.11,0.00023561,2]
[357467790,1744077054799,-1335.7,0.00023561,2]
[357467791,1744077054808,-500.0,0.00023561,2]
[357467792,1744077054818,-1162.69,0.00023561,2]
[357467793,1744077054828,-500.0,0.00023561,2]
[357467794,1744077054837,-561.08,0.00023561,2]
[357467795,1744077054847,-1291.27,0.00023561,2]
[357467796,1744077054856,-2979.5,0.00023561,2]
[357467797,1744077054866,-590.76,0.00023561,2]
[357467798,1744077054875,-1401.91,0.00023561,2]
[357467799,1744077054885,-500.0,0.00023561,2]
[357467800,1744077054894,-500.0,0.00023561,2]
[357467801,1744077054904,-500.0,0.00023561,2]
[357467802,1744077054913,-500.0,0.00023561,2]
[357467803,1744077054923,-500.0,0.00023561,2]
[357467804,1744077054935,-500.0,0.00023561,2]
[357467805,1744077054944,-1531.45,0.00023561,2]
[357467806,1744077054954,-500.0,0.00023561,2]
[357467807,1744077054963,-1855.88,0.00023561,2]
[357467808,1744077054973,-500.0,0.00023561,2]
[357467809,1744077054983,-500.0,0.00023561,2]
[357467810,1744077054993,-1878.37,0.00023561,2]
[357467811,1744077055002,-500.0,0.00023561,2]
[357467812,1744077055014,-500.0,0.00023561,2]
[357467813,1744077055025,-500.0,0.00023561,2]
[357467814,1744077055034,-500.0,0.00023561,2]
[357467815,1744077055045,-1906.57,0.00023561,2]
[357467816,1744077055054,-500.0,0.00023561,2]
[357467817,1744077055064,-500.0,0.00023561,2]
[357467818,1744077055073,-1498.13,0.00023561,2]
[357467819,1744077055082,-500.0,0.00023561,2]
[357467820,1744077055092,-500.0,0.00023561,2]
[357467821,1744077055102,-1165.83,0.00023561,2]
[357467822,1744077055111,-500.0,0.00023561,2]
[357467823,1744077055121,-500.0,0.00023561,2]
[357467824,1744077055130,-500.0,0.00023561,2]
[357467825,1744077055140,-500.0,0.00023561,2]
[357467826,1744077055150,-1184.51,0.00023561,2]
[357467827,1744077055159,-2926.36,0.00023561,2]
[357467828,1744077055169,-1109.48,0.00023561,2]
[357467829,1744077055178,-8763.46,0.00023561,2]
[357467830,1744077055188,-602.81,0.00023561,2]
[357467831,1744077055197,-1118.42,0.00023561,2]
[357467832,1744077055207,-500.0,0.00023561,2]
[357467833,1744077055216,-500.0,0.00023561,2]
[357467834,1744077055226,-500.0,0.00023561,2]
[357467835,1744077055236,-503.7,0.00023561,2]
[357467836,1744077055245,-500.0,0.00023561,2]
[357467837,1744077055256,-500.0,0.00023561,2]
[357467838,1744077055265,-1780.71,0.00023561,2]
[357467839,1744077055274,-1494.33,0.00023561,2]
[357467840,1744077055284,-2426.96,0.00023561,2]
[357467841,1744077055293,-853.03,0.00023561,2]
[357467842,1744077055303,-500.0,0.00023561,2]
[357467843,1744077055312,-500.0,0.00023561,2]
[357467844,1744077055321,-1136.31,0.00023561,2]
[357467845,1744077055331,-500.0,0.00023561,2]
[357467846,1744077055340,-2088.72,0.00023561,2]
[357467847,1744077055350,-1347.03,0.00023561,2]
[357467848,1744077055360,-281.27608458,0.00023646,2]
[357467849,1744077055369,-211.0,0.00023711,2]
[357467850,1744077055378,-214.59994313,0.00023835,2]
[357467851,1744077055388,-500.0,0.00023835,2]
[357467852,1744077055397,-505.48,0.00023835,2]
[357467853,1744077055406,-549.37,0.00023835,2]
[357467854,1744077055416,-989.79,0.00023835,2]
[357467855,1744077055425,-500.0,0.00023835,2]
[357467856,1744077055434,-500.0,0.00023835,2]
[357467857,1744077055443,-500.0,0.00023835,2]
[357467858,1744077055452,-571.51,0.00023835,2]
[357467859,1744077055461,-500.0,0.00023835,2]
[357467860,1744077055471,-500.0,0.00023835,2]
[357467861,1744077055480,-500.0,0.00023835,2]
[357467862,1744077055490,-500.0,0.00023835,2]
[357467863,1744077055499,-500.0,0.00023835,2]
[357467864,1744077055509,-500.0,0.00023835,2]
[357467865,1744077055519,-500.0,0.00023835,2]
[357467866,1744077055528,-500.0,0.00023835,2]
[357467867,1744077055537,-500.0,0.00023835,2]
[357467868,1744077055548,-352.16428442,0.00023835,2]
[357467869,1744077055557,-500.0,0.00023835,2]
[357467870,1744077055567,-520.89,0.00023835,2]
[357467871,1744077055577,-500.0,0.00023835,2]
[357467872,1744077055586,-500.0,0.00023835,2]
[357467873,1744077055596,-209.40938492,0.00023835,2]
[357467874,1744077055606,-247.73462738,0.00023835,2]
[357467875,1744077055616,-1231.93,0.00023835,2]
[357467876,1744077055625,-500.0,0.00023835,2]
[357467877,1744077055635,-612.52,0.00023835,2]
[357467878,1744077055645,-954.53,0.00023835,2]
[357467879,1744077055654,-500.0,0.00023835,2]
[357467880,1744077055664,-501.24,0.00023835,2]
[357467881,1744077055674,-943.13,0.00023835,2]
[357467882,1744077055683,-500.0,0.00023835,2]
[357467883,1744077055693,-643.13,0.00023835,2]
[357467884,1744077055703,-500.0,0.00023835,2]
[357467885,1744077055712,-500.0,0.00023835,2]
[357467886,1744077055722,-500.0,0.00023835,2]
[357467887,1744077055731,-613.81134438,0.00023835,2]
[357467888,1744077055742,-500.0,0.00023835,2]
[357467889,1744077055751,-1197.82,0.00023835,2]
[357467890,1744077055761,-711.83,0.00023835,2]
[357467891,1744077055771,-500.0,0.00023835,2]
[357467892,1744077055781,-1237.52,0.00023835,2]
[357467893,1744077055790,-500.0,0.00023835,2]
[357467894,1744077055802,-500.0,0.00023835,2]
[357467895,1744077055811,-816.65,0.00023835,2]
[357467896,1744077055821,-500.0,0.00023835,2]
[357467897,1744077055831,-500.0,0.00023835,2]
[357467898,1744077055840,-500.0,0.00023835,2]
[357467899,1744077055849,-500.0,0.00023835,2]
[357467900,1744077055859,-500.0,0.00023835,2]
[357467901,1744077055869,-500.0,0.00023835,2]
[357467902,1744077055879,-500.0,0.00023835,2]
[357467903,1744077055888,-500.0,0.00023835,2]
[357467904,1744077055898,-500.0,0.00023835,2]
[357467905,1744077055908,-500.0,0.00023835,2]
[357467906,1744077055919,-500.0,0.00023835,2]
[357467907,1744077055931,-521.4,0.00023835,2]
[357467908,1744077055940,-677.48,0.00023835,2]
[357467909,1744077055950,-500.0,0.00023835,2]
[357467910,1744077055960,-500.0,0.00023835,2]
[357467911,1744077055971,-500.0,0.00023835,2]
[357467912,1744077055980,-1015.63,0.00023835,2]
[357467913,1744077055990,-965.83,0.00023835,2]
[357467914,1744077055999,-500.0,0.00023835,2]
[357467915,1744077056009,-883.8,0.00023835,2]
[357467916,1744077056020,-955.46,0.00023835,2]
[357467917,1744077056030,-500.0,0.00023835,2]
[357467918,1744077056040,-500.0,0.00023835,2]
[357467919,1744077056050,-2195.18,0.00023835,2]
[357467920,1744077056060,-500.0,0.00023835,2]
[357467921,1744077056070,-500.0,0.00023835,2]
[357467922,1744077056080,-500.0,0.00023835,2]
[357467923,1744077056089,-500.0,0.00023835,2]
[357467924,1744077056100,-500.0,0.00023835,2]
[357467925,1744077056110,-1724.47,0.00023835,2]
[357467926,1744077056297,-500.0,0.00023835,2]
[357467927,1744077056309,-500.0,0.00023835,2]
[357467928,1744077056320,-500.0,0.00023835,2]
[357467929,1744077056330,-1673.88,0.00023835,2]
[357467930,1744077056339,-500.0,0.00023835,2]
[357467931,1744077056349,-534.14,0.00023835,2]
[357467932,1744077056359,-500.0,0.00023835,2]
[357467933,1744077056369,-500.0,0.00023835,2]
[357467934,1744077056379,-500.0,0.00023835,2]
[357467935,1744077056390,-1340.54,0.00023835,2]
[357467936,1744077056399,-542.01,0.00023835,2]
[357467937,1744077056409,-524.96,0.00023835,2]
[357467938,1744077056419,-500.0,0.00023835,2]
[357467939,1744077056429,-500.0,0.00023835,2]
[357467940,1744077056439,-730.76,0.00023835,2]
[357467941,1744077056449,-1513.16,0.00023835,2]
[357467942,1744077056459,-2076.71,0.00023835,2]
[357467943,1744077056469,-2241.86,0.00023835,2]
[357467944,1744077056479,-1276.21,0.00023835,2]
[357467945,1744077056490,-720.44,0.00023835,2]
[357467946,1744077056500,-2755.26,0.00023835,2]
[357467947,1744077056510,-500.0,0.00023835,2]
[357467948,1744077056520,-500.0,0.00023835,2]
[357467949,1744077056530,-500.0,0.00023835,2]
[357467950,1744077056541,-500.0,0.00023835,2]
[357467951,1744077056552,-500.0,0.00023835,2]
[357467952,1744077056562,-500.0,0.00023835,2]
[357467953,1744077056572,-500.0,0.00023835,2]
[357467954,1744077056582,-500.0,0.00023835,2]
[357467955,1744077056591,-500.0,0.00023835,2]
[357467956,1744077056602,-795.94,0.00023835,2]
[357467957,1744077056611,-500.0,0.00023835,2]
[357467958,1744077056621,-5255.83,0.00023835,2]
[357467959,1744077056631,-1073.11,0.00023835,2]
[357467960,1744077056641,-1335.7,0.00023835,2]
[357467961,1744077056651,-500.0,0.00023835,2]
[357467962,1744077056660,-500.0,0.00023835,2]
[357467963,1744077056670,-1162.69,0.00023835,2]
[357467964,1744077056680,-561.08,0.00023835,2]
[357467965,1744077056689,-1291.27,0.00023835,2]
[357467966,1744077056700,-2979.5,0.00023835,2]
[357467967,1744077056709,-590.76,0.00023835,2]
[357467968,1744077056719,-1401.91,0.00023835,2]
[357467969,1744077056729,-500.0,0.00023835,2]
[357467970,1744077056738,-500.0,0.00023835,2]
[357467971,1744077056747,-500.0,0.00023835,2]
[357467972,1744077056758,-500.0,0.00023835,2]
[357467973,1744077056767,-500.0,0.00023835,2]
[357467974,1744077056778,-500.0,0.00023835,2]
[357467975,1744077056787,-1531.45,0.00023835,2]
[357467976,1744077056798,-500.0,0.00023835,2]
[357467977,1744077056808,-1855.88,0.00023835,2]
[357467978,1744077056817,-500.0,0.00023835,2]
[357467979,1744077056827,-500.0,0.00023835,2]
[357467980,1744077056837,-1878.37,0.00023835,2]
[357467981,1744077056846,-500.0,0.00023835,2]
[357467982,1744077056856,-500.0,0.00023835,2]
[357467983,1744077056865,-500.0,0.00023835,2]
[357467984,1744077056875,-500.0,0.00023835,2]
[357467985,1744077056885,-1906.57,0.00023835,2]
[357467986,1744077056896,-500.0,0.00023835,2]
[357467987,1744077056906,-500.0,0.00023835,2]
[357467988,1744077056915,-1498.13,0.00023835,2]
[357467989,1744077056926,-500.0,0.00023835,2]
[357467990,1744077056937,-500.0,0.00023835,2]
[357467991,1744077056947,-1165.83,0.00023835,2]
[357467992,1744077056957,-500.0,0.00023835,2]
[357467993,1744077056968,-500.0,0.00023835,2]
[357467994,1744077056978,-500.0,0.00023835,2]
[357467995,1744077056988,-500.0,0.00023835,2]
[357467996,1744077056997,-1184.51,0.00023835,2]
[357467997,1744077057007,-2926.36,0.00023835,2]
[357467998,1744077057016,-8763.46,0.00023835,2]
[357467999,1744077057026,-1109.48,0.00023835,2]
[357468000,1744077057036,-602.81,0.00023835,2]
[357468001,1744077057045,-1118.42,0.00023835,2]
[357468002,1744077057054,-500.0,0.00023835,2]
[357468003,1744077057063,-500.0,0.00023835,2]
[357468004,1744077057072,-500.0,0.00023835,2]
[357468005,1744077057082,-503.7,0.00023835,2]
[357468006,1744077057091,-500.0,0.00023835,2]
[357468007,1744077057101,-500.0,0.00023835,2]
[357468008,1744077057111,-1780.71,0.00023835,2]
[357468009,1744077057120,-1494.33,0.00023835,2]
[357468010,1744077057129,-2426.96,0.00023835,2]
[357468011,1744077057139,-853.03,0.00023835,2]
[357468012,1744077057148,-500.0,0.00023835,2]
[357468013,1744077057157,-500.0,0.00023835,2]
[357468014,1744077057167,-1136.31,0.00023835,2]
[357468015,1744077057176,-500.0,0.00023835,2]
[357468016,1744077057185,-2088.72,0.00023835,2]
[357468017,1744077057195,-1347.03,0.00023835,2]
[357468018,1744077057204,-500.0,0.00024109,2]
[357468019,1744077057213,-505.48,0.00024109,2]
[357468020,1744077057223,-549.37,0.00024109,2]
[357468021,1744077057232,-989.79,0.00024109,2]
[357468022,1744077057241,-500.0,0.00024109,2]
[357468023,1744077057251,-500.0,0.00024109,2]
[357468024,1744077057262,-500.0,0.00024109,2]
[357468025,1744077057272,-571.51,0.00024109,2]
[357468026,1744077057283,-293.24522538,0.00024109,2]
[357468027,1744077057294,-500.0,0.00024109,2]
[357468028,1744077057305,-500.0,0.00024109,2]
[357468029,1744077057315,-500.0,0.00024109,2]
[357468030,1744077057325,-500.0,0.00024109,2]
[357468031,1744077057335,-500.0,0.00024109,2]
[357468032,1744077057346,-500.0,0.00024109,2]
[357468033,1744077057357,-500.0,0.00024109,2]
[357468034,1744077057367,-500.0,0.00024109,2]
[357468035,1744077057376,-500.0,0.00024109,2]
[357468036,1744077057387,-520.89,0.00024109,2]
[357468037,1744077057397,-500.0,0.00024109,2]
[357468038,1744077057407,-500.0,0.00024109,2]
[357468039,1744077057418,-1231.93,0.00024109,2]
[357468040,1744077057428,-500.0,0.00024109,2]
[357468041,1744077057438,-612.52,0.00024109,2]
[357468042,1744077057448,-954.53,0.00024109,2]
[357468043,1744077057458,-500.0,0.00024109,2]
[357468044,1744077057469,-501.24,0.00024109,2]
[357468045,1744077057480,-943.13,0.00024109,2]
[357468046,1744077057492,-500.0,0.00024109,2]
[357468047,1744077057503,-643.13,0.00024109,2]
[357468048,1744077057514,-500.0,0.00024109,2]
[357468049,1744077057524,-500.0,0.00024109,2]
[357468050,1744077057534,-500.0,0.00024109,2]
[357468051,1744077057546,-500.0,0.00024109,2]
[357468052,1744077057557,-1197.82,0.00024109,2]
[357468053,1744077057567,-711.83,0.00024109,2]
[357468054,1744077057577,-500.0,0.00024109,2]
[357468055,1744077057586,-1237.52,0.00024109,2]
[357468056,1744077057596,-500.0,0.00024109,2]
[357468057,1744077057606,-500.0,0.00024109,2]
[357468058,1744077057616,-816.65,0.00024109,2]
[357468059,1744077057625,-500.0,0.00024109,2]
[357468060,1744077057636,-500.0,0.00024109,2]
[357468061,1744077057645,-500.0,0.00024109,2]
[357468062,1744077057655,-500.0,0.00024109,2]
[357468063,1744077057665,-500.0,0.00024109,2]
[357468064,1744077057676,-500.0,0.00024109,2]
[357468065,1744077057686,-493.0237905,0.00024109,2]
[357468066,1744077057696,-500.0,0.00024109,2]
[357468067,1744077057706,-500.0,0.00024109,2]
[357468068,1744077057716,-500.0,0.00024109,2]
[357468069,1744077057726,-500.0,0.00024109,2]
[357468070,1744077057736,-521.4,0.00024109,2]
[357468071,1744077057746,-677.48,0.00024109,2]
[357468072,1744077057756,-500.0,0.00024109,2]
[357468073,1744077057770,-500.0,0.00024109,2]
[357468074,1744077057789,-500.0,0.00024109,2]
[357468075,1744077057803,-1015.63,0.00024109,2]
[357468076,1744077057814,-965.83,0.00024109,2]
[357468077,1744077057825,-500.0,0.00024109,2]
[357468078,1744077057836,-883.8,0.00024109,2]
[357468079,1744077057847,-955.46,0.00024109,2]
[357468080,1744077057866,-500.0,0.00024109,2]
[357468081,1744077057883,-500.0,0.00024109,2]
[357468082,1744077057900,-2195.18,0.00024109,2]
[357468083,1744077057913,-500.0,0.00024109,2]
[357468084,1744077057930,-500.0,0.00024109,2]
[357468085,1744077057946,-500.0,0.00024109,2]
[357468086,1744077057960,-500.0,0.00024109,2]
[357468087,1744077057975,-192.91527825,0.00024109,2]
[357468088,1744077057990,-1724.47,0.00024109,2]
[357468089,1744077058005,-500.0,0.00024109,2]
[357468090,1744077058022,-500.0,0.00024109,2]
[357468091,1744077058036,-500.0,0.00024109,2]
[357468092,1744077058054,-1673.88,0.00024109,2]
[357468093,1744077058068,-500.0,0.00024109,2]
[357468094,1744077058082,-534.14,0.00024109,2]
[357468095,1744077058096,-500.0,0.00024109,2]
[357468096,1744077058111,-500.0,0.00024109,2]
[357468097,1744077058124,-500.0,0.00024109,2]
[357468098,1744077058139,-1340.54,0.00024109,2]
[357468099,1744077058151,-542.01,0.00024109,2]
[357468100,1744077058164,-524.96,0.00024109,2]
[357468101,1744077058177,-500.0,0.00024109,2]
[357468102,1744077058191,-500.0,0.00024109,2]
[357468103,1744077058206,-730.76,0.00024109,2]
[357468104,1744077058221,-1513.16,0.00024109,2]
[357468105,1744077058234,-2076.71,0.00024109,2]
[357468106,1744077058250,-2241.86,0.00024109,2]
[357468107,1744077058264,-1276.21,0.00024109,2]
[357468108,1744077058280,-720.44,0.00024109,2]
[357468109,1744077058292,-2755.26,0.00024109,2]
[357468110,1744077058305,-534.47848095,0.00024109,2]
[357468111,1744077058316,-622.27838519,0.00024109,2]
[357468112,1744077058328,-500.0,0.00024109,2]
[357468113,1744077058343,-500.0,0.00024109,2]
[357468114,1744077058359,-500.0,0.00024109,2]
[357468115,1744077058373,-500.0,0.00024109,2]
[357468116,1744077058385,-500.0,0.00024109,2]
[357468117,1744077058397,-500.0,0.00024109,2]
[357468118,1744077058410,-500.0,0.00024109,2]
[357468119,1744077058425,-795.94,0.00024109,2]
[357468120,1744077058438,-500.0,0.00024109,2]
[357468121,1744077058450,-5255.83,0.00024109,2]
[357468122,1744077058461,-1073.11,0.00024109,2]
[357468123,1744077058475,-1335.7,0.00024109,2]
[357468124,1744077058487,-500.0,0.00024109,2]
[357468125,1744077058499,-500.0,0.00024109,2]
[357468126,1744077058511,-1162.69,0.00024109,2]
[357468127,1744077058523,-561.08,0.00024109,2]
[357468128,1744077058534,-1291.27,0.00024109,2]
[357468129,1744077058546,-2979.5,0.00024109,2]
[357468130,1744077058558,-590.76,0.00024109,2]
[357468131,1744077058570,-1401.91,0.00024109,2]
[357468132,1744077058583,-500.0,0.00024109,2]
[357468133,1744077058595,-500.0,0.00024109,2]
[357468134,1744077058607,-500.0,0.00024109,2]
[357468135,1744077058620,-500.0,0.00024109,2]
[357468136,1744077058632,-500.0,0.00024109,2]
[357468137,1744077058644,-500.0,0.00024109,2]
[357468138,1744077058657,-1531.45,0.00024109,2]
[357468139,1744077058669,-500.0,0.00024109,2]
[357468140,1744077058682,-1855.88,0.00024109,2]
[357468141,1744077058695,-500.0,0.00024109,2]
[357468142,1744077058707,-500.0,0.00024109,2]
[357468143,1744077058720,-1878.37,0.00024109,2]
[357468144,1744077058732,-500.0,0.00024109,2]
[357468145,1744077058746,-500.0,0.00024109,2]
[357468146,1744077058759,-500.0,0.00024109,2]
[357468147,1744077058772,-500.0,0.00024109,2]
[357468148,1744077058784,-1906.57,0.00024109,2]
[357468149,1744077058797,-500.0,0.00024109,2]
[357468150,1744077058810,-500.0,0.00024109,2]
[357468151,1744077058822,-1498.13,0.00024109,2]
[357468152,1744077058835,-500.0,0.00024109,2]
[357468153,1744077058847,-500.0,0.00024109,2]
[357468154,1744077058859,-1165.83,0.00024109,2]
[357468155,1744077058871,-500.0,0.00024109,2]
[357468156,1744077058884,-500.0,0.00024109,2]
[357468157,1744077058895,-160.04206688,0.00024109,2]
[357468158,1744077058907,-500.0,0.00024109,2]
[357468159,1744077058919,-1184.51,0.00024109,2]
[357468160,1744077058931,-2926.36,0.00024109,2]
[357468161,1744077058946,-1109.48,0.00024109,2]
[357468162,1744077058959,-8763.46,0.00024109,2]
[357468163,1744077058971,-602.81,0.00024109,2]
[357468164,1744077058985,-1118.42,0.00024109,2]